fUSD/lending_fUSD_20240119
["ID","MTS","AMOUNT","RATE_DAILY","PERIOD"]
[312133195,1705666261000,-500.0,0.00022999,2]
[312133196,1705666261012,-505.39657944,0.00022999,2]
[312133197,1705666261025,-316.64571179,0.00022999,2]
[312133198,1705666261036,-500.0,0.00022999,2]
[312133199,1705666261048,-500.0,0.00022999,2]
[312133200,1705666261059,-600.4084183,0.00022999,2]
[312133201,1705666261072,-500.0,0.00022999,2]
[312133202,1705666261083,-500.0,0.00022999,2]
[312133203,1705666261095,-323.7020117,0.00022999,2]
[312133204,1705666261108,-500.0,0.00022999,2]
[312133205,1705666261119,-550.61700348,0.00022999,2]
[312133206,1705666261132,-500.0,0.00022999,2]
[312133207,1705666261143,-566.91602785,0.00022999,2]
[312133208,1705666261155,-516.0463951,0.00022999,2]
[312133209,1705666261167,-500.0,0.00022999,2]
[312133210,1705666261177,-573.97031597,0.00022999,2]
[312133211,1705666261189,-524.5015997,0.00022999,2]
[312133212,1705666261201,-503.23068696,0.00022999,2]
[312133213,1705666261213,-500.0,0.00022999,2]
[312133214,1705666261225,-500.0,0.00022999,2]
[312133215,1705666261236,-510.32331132,0.00022999,2]
[312133216,1705666261246,-500.0,0.00022999,2]
[312133217,1705666261258,-500.91945578,0.00022999,2]
[312133218,1705666261269,-504.80278488,0.00022999,2]
[312133219,1705666261281,-622.50142572,0.00022999,2]
[312133220,1705666261292,-500.0,0.00022999,2]
[312133221,1705666261303,-500.0,0.00022999,2]
[312133222,1705666261314,-500.0,0.00022999,2]
[312133223,1705666261326,-500.0,0.00022999,2]
[312133224,1705666261337,-500.0,0.00022999,2]
[312133225,1705666261348,-560.05702896,0.00022999,2]
[312133226,1705666261360,-491.90986886,0.00022999,2]
[312133227,1705666261372,-503.07414297,0.00022999,2]
[312133228,1705666261384,-500.0,0.00022999,2]
[312133229,1705666261395,-500.0,0.00022999,2]
[312133230,1705666261408,-522.49538165,0.00022999,2]
[312133231,1705666261419,-500.0,0.00022999,2]
[312133232,1705666261430,-524.02473539,0.00022999,2]
[312133233,1705666261441,-516.05197443,0.00022999,20]
[312133234,1705666261453,-221.837415,0.00022999,2]
[312133235,1705666261464,-509.09831989,0.00022999,2]
[312133236,1705666261474,-500.0,0.00022999,2]
[312133237,1705666261486,-523.49579745,0.00022999,2]
[312133238,1705666261497,-500.0,0.00022999,2]
[312133239,1705666261509,-212.24653479,0.00022999,2]
[312133240,1705666261520,-500.0,0.00022999,2]
[312133241,1705666261532,-500.0,0.00022999,2]
[312133242,1705666261543,-1000.0,0.00022999,2]
[312133243,1705666261554,-500.0,0.00022999,2]
[312133244,1705666261565,-500.0,0.00022999,2]
[312133245,1705666261576,-510.58735652,0.00022999,2]
[312133246,1705666261587,-500.0,0.00022999,2]
[312133247,1705666261603,-500.0,0.00022999,2]
[312133248,1705666261615,-538.79617537,0.00022999,2]
[312133249,1705666261626,-500.0,0.00022999,2]
[312133250,1705666261639,-500.0,0.00022999,2]
[312133251,1705666261650,-500.0,0.00022999,2]
[312133252,1705666261662,-500.0,0.00022999,2]
[312133253,1705666261673,-578.3576256,0.00022999,2]
[312133254,1705666261685,-509.41373964,0.00022999,2]
[312133255,1705666261696,-500.0,0.00022999,2]
[312133256,1705666261708,-500.0,0.00022999,2]
[312133257,1705666261719,-500.0,0.00022999,2]
[312133258,1705666261731,-500.0,0.00022999,9]
[312133259,1705666261743,-500.0,0.00022999,2]
[312133260,1705666261755,-314.25813223,0.00022999,2]
[312133261,1705666261767,-539.82762875,0.00022999,2]
[312133262,1705666261779,-505.89256261,0.00022999,2]
[312133263,1705666261792,-500.0,0.00022999,2]
[312133264,1705666261804,-500.0,0.00022999,2]
[312133265,1705666261816,-500.0,0.00022999,2]
[312133266,1705666261829,-500.0,0.00022999,2]
[312133267,1705666261841,-500.0,0.00022999,2]
[312133268,1705666261854,-500.0,0.00022999,2]
[312133269,1705666261868,-256.9206903,0.00022999,2]
[312133270,1705666261880,-500.0,0.00022999,2]
[312133271,1705666261892,-598.69607438,0.00022999,2]
[312133272,1705666261904,-500.0,0.00022999,2]
[312133273,1705666261916,-531.83394215,0.00022999,2]
[312133274,1705666261928,-500.0,0.00022999,2]
[312133275,1705666261939,-442.04,0.00022999,2]
[312133276,1705666261952,-191.98045413,0.00022999,2]
[312133277,1705666261964,-428.45539525,0.00022999,2]
[312133278,1705666261976,-516.80202756,0.00022999,2]
[312133279,1705666261989,-500.0,0.00022999,2]
[312133280,1705666262001,-500.0,0.00022999,2]
[312133281,1705666262014,-502.74860872,0.00022999,2]
[312133282,1705666262027,-500.0,0.00022999,2]
[312133283,1705666262039,-500.0,0.00022999,2]
[312133284,1705666262050,-500.0,0.00022999,2]
[312133285,1705666262061,-368.00603896,0.00022999,2]
[312133286,1705666262073,-1439.31,0.00022999,2]
[312133287,1705666262084,-1221.48,0.00022999,2]
[312133288,1705666262096,-500.0,0.00022999,2]
[312133289,1705666262109,-500.0,0.00022999,2]
[312133290,1705666262120,-500.0,0.00022999,2]
[312133291,1705666262132,-500.0,0.00022999,2]
[312133292,1705666262144,-500.0,0.00022999,2]
[312133293,1705666262155,-500.0,0.00022999,2]
[312133294,1705666262166,-500.0,0.00022999,2]
[312133295,1705666262178,-500.0,0.00022999,2]
[312133296,1705666262189,-442.64025489,0.00022999,2]
[312133297,1705666262202,-2355.38,0.00022999,2]
[312133298,1705666262213,-500.0,0.00022999,2]
[312133299,1705666262225,-1913.69,0.00022999,2]
[312133300,1705666262237,-500.0,0.00022999,2]
[312133301,1705666262250,-500.0,0.00022999,2]
[312133302,1705666262261,-500.0,0.00022999,2]
[312133303,1705666262274,-500.0,0.00022999,2]
[312133304,1705666262285,-500.0,0.00022999,2]
[312133305,1705666262297,-500.0,0.00022999,2]
[312133306,1705666262310,-178.7,0.00022999,2]
[312133307,1705666262322,-1013.62273521,0.00022999,7]
[312133308,1705666262334,-500.0,0.00022999,2]
[312133309,1705666262346,-500.0,0.00022999,2]
[312133310,1705666262358,-1389.84,0.00022999,2]
[312133311,1705666262370,-500.0,0.00022999,2]
[312133312,1705666262382,-314.55461467,0.00022999,2]
[312133313,1705666262393,-500.85154776,0.00022999,2]
[312133314,1705666262404,-500.0,0.00022999,2]
[312133315,1705666262415,-608.62219895,0.00022999,10]
[312133316,1705666262428,-566.35,0.00022999,2]
[312133317,1705666262446,-510.02592594,0.00022999,2]
[312133318,1705666262458,-500.0,0.00022999,2]
[312133319,1705666262470,-500.0,0.00022999,2]
[312133320,1705666262480,-500.0,0.00022999,2]
[312133321,1705666262491,-500.0,0.00022999,2]
[312133322,1705666262502,-500.0,0.00022999,2]
[312133323,1705666262513,-500.0,0.00022999,2]
[312133324,1705666262525,-500.0,0.00022999,2]
[312133325,1705666262538,-500.0,0.00022999,2]
[312133326,1705666262550,-462.72,0.00022999,2]
[312133327,1705666262561,-834.36,0.00022999,2]
[312133328,1705666262572,-502.18101837,0.00022999,2]
[312133329,1705666262585,-899.48,0.00022999,2]
[312133330,1705666262599,-1018.63,0.00022999,2]
[312133331,1705666262611,-770.66,0.00022999,2]
[312133332,1705666262623,-602.31,0.00022999,2]
[312133333,1705666262638,-543.43,0.00022999,2]
[312133334,1705666262650,-1486.66,0.00022999,2]
[312133335,1705666262662,-1291.26,0.00022999,2]
[312133336,1705666262674,-946.18,0.00022999,2]
[312133337,1705666262686,-1374.09,0.00022999,2]
[312133338,1705666262699,-1903.0,0.00022999,2]
[312133339,1705666262710,-553.47503956,0.00022999,2]
[312133340,1705666262721,-1394.03,0.00022999,2]
[312133341,1705666262733,-500.0,0.00022999,2]
[312133342,1705666262744,-1081.06,0.00022999,2]
[312133343,1705666262755,-613.64,0.00022999,2]
[312133344,1705666262767,-822.5,0.00022999,2]
[312133345,1705666262779,-988.14,0.00022999,2]
[312133346,1705666262790,-1134.32,0.00022999,2]
[312133347,1705666262803,-500.0,0.00022999,2]
[312133348,1705666262815,-1114.34,0.00022999,2]
[312133349,1705666262828,-500.0,0.00022999,2]
[312133350,1705666262839,-500.0,0.00022999,2]
[312133351,1705666262851,-1136.5,0.00022999,2]
[312133352,1705666262863,-657.2,0.00022999,2]
[312133353,1705666262874,-1517.72,0.00022999,2]
[312133354,1705666262887,-500.0,0.00022999,2]
[312133355,1705666262899,-1390.83,0.00022999,2]
[312133356,1705666262911,-500.0,0.00022999,2]
[312133357,1705666262921,-500.0,0.00022999,2]
[312133358,1705666262933,-579.14323332,0.00022999,2]
[312133359,1705666262944,-624.44,0.00022999,2]
[312133360,1705666262955,-873.54,0.00022999,2]
[312133361,1705666262967,-500.0,0.00022999,2]
[312133362,1705666262980,-500.0,0.00022999,2]
[312133363,1705666262992,-500.0,0.00022999,2]
[312133364,1705666263003,-500.0,0.00022999,2]
[312133365,1705666263014,-1098.08,0.00022999,2]
[312133366,1705666263026,-1055.03,0.00022999,2]
[312133367,1705666263038,-500.0,0.00022999,2]
[312133368,1705666263048,-500.0,0.00022999,2]
[312133369,1705666263059,-500.0,0.00022999,2]
[312133370,1705666263071,-500.0,0.00022999,2]
[312133371,1705666263082,-500.0,0.00022999,2]
[312133372,1705666263094,-500.0,0.00022999,2]
[312133373,1705666263105,-500.0,0.00022999,2]
[312133374,1705666263115,-500.0,0.00022999,2]
[312133375,1705666263128,-500.0,0.00022999,2]
[312133376,1705666263139,-500.0,0.00022999,2]
[312133377,1705666263150,-500.0,0.00022999,2]
[312133378,1705666263162,-500.0,0.00022999,2]
[312133379,1705666263173,-533.72378666,0.00022999,2]
[312133380,1705666263184,-1465.17,0.00022999,2]
[312133381,1705666263195,-1388.77,0.00022999,2]
[312133382,1705666263206,-500.0,0.00022999,2]
[312133383,1705666263218,-554.22576169,0.00022999,2]
[312133384,1705666263229,-500.0,0.00022999,2]
[312133385,1705666263241,-500.0,0.00022999,2]
[312133386,1705666263252,-284.15350318,0.00022999,2]
[312133387,1705666263264,-500.0,0.00022999,2]
[312133388,1705666263276,-751.33,0.00022999,2]
[312133389,1705666263286,-847.66,0.00022999,2]
[312133390,1705666263298,-1716.75,0.00022999,2]
[312133391,1705666263309,-500.0,0.00022999,2]
[312133392,1705666263320,-500.0,0.00022999,2]
[312133393,1705666263331,-500.0,0.00022999,2]
[312133394,1705666263342,-500.0,0.00022999,2]
[312133395,1705666263353,-500.0,0.00022999,2]
[312133396,1705666263365,-500.0,0.00022999,2]
[312133397,1705666263377,-500.0,0.00022999,2]
[312133398,1705666263388,-500.0,0.00022999,2]
[312133399,1705666263400,-186.99343628,0.00022999,2]
[312133400,1705666263411,-1266.25,0.00022999,2]
[312133401,1705666263422,-1506.4,0.00022999,2]
[312133402,1705666263435,-1094.94,0.00022999,2]
[312133403,1705666263447,-1831.72,0.00022999,2]
[312133404,1705666263458,-1727.3,0.00022999,2]
[312133405,1705666263470,-1056.89,0.00022999,2]
[312133406,1705666263481,-500.0,0.00022999,2]
[312133407,1705666263715,-935.85,0.00022999,2]
[312133408,1705666263727,-1066.08,0.00022999,2]
[312133409,1705666263738,-1553.56,0.00022999,2]
[312133410,1705666263750,-2466.3,0.00022999,2]
[312133411,1705666263761,-1630.52,0.00022999,2]
[312133412,1705666263772,-150.0,0.00022999,2]
[312133413,1705666263784,-150.0,0.00022999,2]
[312133414,1705666263796,-150.0,0.00022999,2]
[312133415,1705666263807,-150.0,0.00022999,2]
[312133416,1705666263819,-150.0,0.00022999,2]
[312133417,1705666263831,-150.0,0.00022999,2]
[312133418,1705666263843,-150.0,0.00022999,2]
[312133419,1705666263856,-150.0,0.00022999,2]
[312133420,1705666263868,-150.0,0.00022999,2]
[312133421,1705666263878,-150.0,0.00022999,2]
[312133422,1705666263889,-150.0,0.00022999,2]
[312133423,1705666263901,-150.0,0.00022999,2]
[312133424,1705666263912,-150.0,0.00022999,2]
[312133425,1705666263924,-150.0,0.00022999,2]
[312133426,1705666263936,-1692.09,0.00022999,2]
[312133427,1705666263948,-150.0,0.00022999,2]
[312133428,1705666263960,-150.0,0.00022999,2]
[312133429,1705666263973,-150.0,0.00022999,2]
[312133430,1705666263984,-150.0,0.00022999,2]
[312133431,1705666263996,-150.0,0.00022999,2]
[312133432,1705666264008,-150.0,0.00022999,2]
[312133433,1705666264018,-150.0,0.00022999,2]
[312133434,1705666264030,-150.0,0.00022999,2]
[312133435,1705666264044,-150.0,0.00022999,2]
[312133436,1705666264055,-150.0,0.00022999,2]
[312133437,1705666264069,-150.0,0.00022999,2]
[312133438,1705666264081,-150.0,0.00022999,2]
[312133439,1705666264093,-1389.04,0.00022999,2]
[312133440,1705666264106,-1366.17,0.00022999,2]
[312133441,1705666264118,-5834.22996372,0.00023,2]
[312133442,1705666264131,-2917.11498186,0.00023,2]
[312133443,1705666264143,-4526355.20471846,0.00023,2]
[312133444,1705666264155,-968551.0994416,0.00023,2]
[312133445,1705666264167,-155.0,0.00023,2]
[312133446,1705666264180,-8499274.51492509,0.00023,2]
[312133447,1705666264193,-437.39633634,0.00023,2]
[312133448,1705666264206,-1179349.52811325,0.00023,2]
[312133449,1705666264219,-1704.73002324,0.00023,3]
[312133450,1705666264231,-2000.0,0.00023,2]
[312133451,1705666264244,-200.0,0.00023,2]
[312133452,1705666264257,-151.0,0.00023,7]
[312133453,1705666264269,-151.0,0.00023,7]
[312133454,1705666264281,-151.0,0.00023,7]
[312133455,1705666264293,-151.0,0.00023,7]
[312133456,1705666264305,-151.0,0.00023,7]
[312133457,1705666264316,-151.0,0.00023,7]
[312133458,1705666264328,-151.0,0.00023,7]
[312133459,1705666264340,-151.0,0.00023,7]
[312133460,1705666264351,-151.0,0.00023,7]
[312133461,1705666264362,-151.0,0.00023,7]
[312133462,1705666264374,-1000.0,0.00023,2]
[312133463,1705666264386,-200.0,0.00023,2]
[312133464,1705666264398,-151.0,0.00023,7]
[312133465,1705666264410,-151.0,0.00023,7]
[312133466,1705666264422,-150.45,0.00023003,2]
[312133467,1705666264433,-3009.0,0.00023014,3]
[312133468,1705666264444,-432.05,0.00023123,2]
[312133469,1705666264456,-3325.3398929,0.0002313,2]
[312133470,1705666264467,-1253.32399225,0.00023209,2]
[312133471,1705666264478,-2053.0,0.0002322,2]
[312133472,1705666264489,-200.0,0.0002323,2]
[312133473,1705666264502,-12068.94,0.00023253,2]
[312133474,1705666264512,-1901.08,0.00023253,2]
[312133475,1705666264524,-975.74,0.00023253,2]
[312133476,1705666264536,-2659.65,0.00023253,2]
[312133477,1705666264547,-500.0,0.00023253,2]
[312133478,1705666264558,-564.95,0.00023253,2]
[312133479,1705666264569,-500.0,0.00023253,2]
[312133480,1705666264582,-1625.11,0.00023253,2]
[312133481,1705666264594,-1446.64,0.00023253,2]
[312133482,1705666264606,-2115.14,0.00023253,2]
[312133483,1705666264619,-1533.66,0.00023253,2]
[312133484,1705666264632,-500.0,0.00023253,2]
[312133485,1705666264643,-5142.49,0.00023253,2]
[312133486,1705666264655,-18985.1,0.00023253,2]
[312133487,1705666264666,-689.2,0.00023253,2]
[312133488,1705666264677,-2678.36,0.00023253,2]
[312133489,1705666264688,-1927.81,0.00023253,2]
[312133490,1705666264700,-3236.89,0.00023253,2]
[312133491,1705666264712,-2323.62,0.00023253,2]
[312133492,1705666264724,-3099.95,0.00023253,2]
[312133493,1705666264735,-1604.1,0.00023253,2]
[312133494,1705666264745,-3224.28,0.00023253,2]
[312133495,1705666264757,-626.86,0.00023253,2]
[312133496,1705666264767,-783.31,0.00023253,2]
[312133497,1705666264779,-3676.75,0.00023253,2]
[312133498,1705666264790,-1875.81,0.00023253,2]
[312133499,1705666264802,-838.41,0.00023253,2]
[312133500,1705666264814,-819.65,0.00023253,2]
[312133501,1705666264826,-993.83,0.00023253,2]
[312133502,1705666264838,-1210.28,0.00023253,2]
[312133503,1705666264849,-500.0,0.00023253,2]
[312133504,1705666264861,-3394.92,0.00023268,2]
[312133505,1705666264872,-2245.7,0.00023268,2]
[312133506,1705666264883,-2640.33,0.00023268,5]
[312133507,1705666264894,-1564.92,0.00023268,2]
[312133508,1705666264906,-1643.94,0.00023268,2]
[312133509,1705666264916,-15598.58,0.00023268,2]
[312133510,1705666264928,-19754.48,0.00023268,2]
[312133511,1705666264939,-11426.74,0.00023268,2]
[312133512,1705666264950,-1205.31,0.00023268,2]
[312133513,1705666264963,-500.0,0.00023268,2]
[312133514,1705666264974,-5092.13,0.00023268,2]
[312133515,1705666264986,-2505.92,0.00023268,2]
[312133516,1705666264997,-2542.57,0.00023268,2]
[312133517,1705666265009,-1214.32,0.00023268,2]
[312133518,1705666265020,-2516.11,0.00023268,2]
[312133519,1705666265031,-5945.8,0.00023268,2]
[312133520,1705666265042,-47078.31,0.00023268,2]
[312133521,1705666265054,-753.07,0.00023268,2]
[312133522,1705666265066,-3287.55,0.00023268,2]
[312133523,1705666265078,-2887.71,0.00023268,2]
[312133524,1705666265089,-1180.41,0.00023268,2]
[312133525,1705666265100,-1115.89,0.00023268,2]
[312133526,1705666265111,-4394.09,0.00023268,2]
[312133527,1705666265122,-500.0,0.00023268,2]
[312133528,1705666265134,-1102.23,0.00023268,2]
[312133529,1705666265144,-1589.65,0.00023268,2]
[312133530,1705666265156,-34180.49,0.00023268,2]
[312133531,1705666265167,-2952.43,0.00023268,2]
[312133532,1705666265178,-892.05,0.00023268,2]
[312133533,1705666265189,-2360.62,0.00023268,2]
[312133534,1705666265201,-2662.92,0.00023268,2]
[312133535,1705666265212,-4108.99,0.00023268,2]
[312133536,1705666265224,-500.0,0.00023269,2]
[312133537,1705666265234,-500.0,0.00023269,2]
[312133538,1705666265245,-500.0,0.00023269,2]
[312133539,1705666265255,-500.0,0.00023269,2]
[312133540,1705666265267,-500.0,0.00023269,2]
[312133541,1705666265278,-500.0,0.00023269,2]
[312133542,1705666265290,-500.0,0.00023269,2]
[312133543,1705666265301,-500.0,0.00023269,2]
[312133544,1705666265514,-500.0,0.00023269,2]
[312133545,1705666265525,-500.0,0.00023269,2]
[312133546,1705666265537,-514.54554977,0.00023269,2]
[312133547,1705666265548,-500.0,0.00023269,2]
[312133548,1705666265559,-500.0,0.00023269,2]
[312133549,1705666265570,-500.0,0.00023269,2]
[312133550,1705666265582,-500.0,0.00023269,2]
[312133551,1705666265594,-500.0,0.00023269,2]
[312133552,1705666265605,-507.12846738,0.00023269,2]
[312133553,1705666265617,-500.0,0.00023269,2]
[312133554,1705666265629,-500.0,0.00023269,2]
[312133555,1705666265641,-500.0,0.00023269,2]
[312133556,1705666265653,-500.0,0.00023269,2]
[312133557,1705666265666,-598.8,0.00023269,2]
[312133558,1705666265678,-500.0,0.00023269,2]
[312133559,1705666265690,-570.58664754,0.00023269,2]
[312133560,1705666265701,-500.0,0.00023269,2]
[312133561,1705666265713,-507.18477322,0.00023269,2]
[312133562,1705666265725,-543.5,0.00023269,2]
[312133563,1705666265737,-500.0,0.00023269,2]
[312133564,1705666265748,-505.30553988,0.00023269,2]
[312133565,1705666265759,-500.0,0.00023269,2]
[312133566,1705666265771,-500.0,0.00023269,2]
[312133567,1705666265783,-500.0,0.00023269,2]
[312133568,1705666265795,-628.05,0.00023269,2]
[312133569,1705666265806,-164.707042,0.00023269,2]
[312133570,1705666265819,-500.0,0.00023269,2]
[312133571,1705666265830,-570.53518507,0.00023269,2]
[312133572,1705666265841,-500.0,0.00023269,2]
[312133573,1705666265854,-960.21,0.00023269,2]
[312133574,1705666265865,-1176.38,0.00023269,2]
[312133575,1705666265876,-500.0,0.00023269,2]
[312133576,1705666265889,-500.0,0.00023269,2]
[312133577,1705666265901,-577.3,0.00023269,2]
[312133578,1705666265912,-500.0,0.00023269,2]
[312133579,1705666265924,-500.0,0.00023269,2]
[312133580,1705666265936,-589.13,0.00023269,2]
[312133581,1705666265948,-907.94,0.00023269,2]
[312133582,1705666265959,-915.25,0.00023269,2]
[312133583,1705666265971,-953.2,0.00023269,2]
[312133584,1705666265983,-554.43,0.00023269,2]
[312133585,1705666265993,-500.0,0.00023269,2]
[312133586,1705666266004,-500.0,0.00023269,2]
[312133587,1705666266016,-592.33,0.00023269,2]
[312133588,1705666266029,-509.1173818,0.00023269,2]
[312133589,1705666266041,-502.84364217,0.00023269,2]
[312133590,1705666266052,-865.14,0.00023269,2]
[312133591,1705666266064,-500.0,0.00023269,2]
[312133592,1705666266075,-500.0,0.00023269,2]
[312133593,1705666266086,-500.0,0.00023269,2]
[312133594,1705666266099,-504.62279829,0.00023269,2]
[312133595,1705666266110,-694.6,0.00023269,2]
[312133596,1705666266123,-506.60552216,0.00023269,2]
[312133597,1705666266134,-500.0,0.00023269,2]
[312133598,1705666266146,-500.0,0.00023269,2]
[312133599,1705666266158,-511.30573634,0.00023269,2]
[312133600,1705666266170,-699.21,0.00023269,2]
[312133601,1705666266181,-634.28,0.00023269,2]
[312133602,1705666266194,-500.0,0.00023269,2]
[312133603,1705666266205,-500.0,0.00023269,2]
[312133604,1705666266216,-1018.36,0.00023269,2]
[312133605,1705666266229,-988.95,0.00023269,2]
[312133606,1705666266240,-700.19,0.00023269,2]
[312133607,1705666266256,-500.0,0.00023269,2]
[312133608,1705666266268,-491.79840548,0.00023269,2]
[312133609,1705666266279,-500.0,0.00023269,2]
[312133610,1705666266290,-504.24815175,0.00023269,2]
[312133611,1705666266302,-500.0,0.00023269,2]
[312133612,1705666266314,-727.89,0.00023269,2]
[312133613,1705666266327,-500.0,0.00023269,2]
[312133614,1705666266338,-504.53716422,0.00023269,2]
[312133615,1705666266428,-1090.17,0.00023269,2]
[312133616,1705666266449,-500.0,0.00023269,2]
[312133617,1705666266462,-503.8356685,0.00023269,2]
[312133618,1705666266473,-505.69497832,0.00023269,2]
[312133619,1705666266484,-500.0,0.00023269,2]
[312133620,1705666266496,-500.0,0.00023269,2]
[312133621,1705666266508,-1289.78,0.00023269,2]
[312133622,1705666266520,-500.0,0.00023269,2]
[312133623,1705666266533,-500.0,0.00023269,2]
[312133624,1705666266545,-500.0,0.00023269,2]
[312133625,1705666266557,-1120.95,0.00023269,2]
[312133626,1705666266568,-514.979798,0.00023269,2]
[312133627,1705666266580,-1300.86,0.00023269,2]
[312133628,1705666266591,-500.0,0.00023269,2]
[312133629,1705666266601,-698.1,0.00023269,2]
[312133630,1705666266612,-500.0,0.00023269,2]
[312133631,1705666266623,-906.66,0.00023269,2]
[312133632,1705666266637,-500.0,0.00023269,2]
[312133633,1705666266651,-919.21,0.00023269,2]
[312133634,1705666266661,-156.26223874,0.00023269,2]
[312133635,1705666266672,-500.0,0.00023269,2]
[312133636,1705666266684,-500.0,0.00023269,2]
[312133637,1705666266695,-545.64,0.00023269,2]
[312133638,1705666266706,-500.0,0.00023269,2]
[312133639,1705666266718,-500.0,0.00023269,2]
[312133640,1705666266730,-500.0,0.00023269,2]
[312133641,1705666266742,-1384.85,0.00023269,2]
[312133642,1705666266754,-500.0,0.00023269,2]
[312133643,1705666266767,-500.0,0.00023269,2]
[312133644,1705666266779,-977.33,0.00023269,2]
[312133645,1705666266792,-500.0,0.00023269,2]
[312133646,1705666266804,-500.0,0.00023269,2]
[312133647,1705666266816,-500.0,0.00023269,2]
[312133648,1705666266828,-1000.0,0.00023269,2]
[312133649,1705666266840,-1012.68,0.00023269,2]
[312133650,1705666266853,-503.37349006,0.00023269,2]
[312133651,1705666266864,-500.0,0.00023269,2]
[312133652,1705666266875,-507.04871981,0.00023269,2]
[312133653,1705666266888,-500.0,0.00023269,2]
[312133654,1705666266900,-196.9943747,0.00023269,2]
[312133655,1705666266911,-500.0,0.00023269,2]
[312133656,1705666266924,-1136.47,0.00023269,2]
[312133657,1705666266936,-500.0,0.00023269,2]
[312133658,1705666266947,-785.17,0.00023269,2]
[312133659,1705666266960,-500.0,0.00023269,2]
[312133660,1705666266971,-500.0,0.00023269,2]
[312133661,1705666266982,-649.03442367,0.00023269,2]
[312133662,1705666266993,-500.0,0.00023269,2]
[312133663,1705666267004,-500.0,0.00023269,2]
[312133664,1705666267017,-648.64,0.00023269,2]
[312133665,1705666267029,-500.0,0.00023269,2]
[312133666,1705666267042,-1005.41,0.00023269,2]
[312133667,1705666267054,-500.0,0.00023269,2]
[312133668,1705666267066,-500.0,0.00023269,2]
[312133669,1705666267078,-500.0,0.00023269,2]
[312133670,1705666267089,-730.87,0.00023269,2]
[312133671,1705666267101,-756.0,0.00023269,2]
[312133672,1705666267112,-709.1,0.00023269,2]
[312133673,1705666267124,-681.37,0.00023269,2]
[312133674,1705666267137,-500.0,0.00023269,2]
[312133675,1705666267149,-500.0,0.00023269,2]
[312133676,1705666267160,-500.0,0.00023269,2]
[312133677,1705666267173,-500.0,0.00023269,2]
[312133678,1705666267184,-626.37,0.00023269,2]
[312133679,1705666267196,-500.0,0.00023269,2]
[312133680,1705666267207,-500.0,0.00023269,2]
[312133681,1705666267219,-500.0,0.00023269,2]
[312133682,1705666267232,-500.0,0.00023269,2]
[312133683,1705666267244,-500.0,0.00023269,2]
[312133684,1705666267350,-500.0,0.00023269,2]
[312133685,1705666267361,-500.0,0.00023269,2]
[312133686,1705666267373,-500.0,0.00023269,2]
[312133687,1705666267632,-926.69,0.00023269,2]
[312133688,1705666267644,-502.90715924,0.00023269,2]
[312133689,1705666267658,-523.20227686,0.00023269,2]
[312133690,1705666267669,-617.42,0.00023269,2]
[312133691,1705666267681,-500.0,0.00023269,2]
[312133692,1705666267693,-500.0,0.00023269,2]
[312133693,1705666267706,-618.52,0.00023269,2]
[312133694,1705666267718,-501.14649546,0.00023269,2]